Cogmind - Beta 9.1 *** ADVENTURER MODE // 2019.10.29 @ 22:27:22 Player: Armok Result: Destroyed by G-47 Trooper with Particle Gun Performance ------------- Evolutions (1) 500 Regions Visited (2) 400 Robots Destroyed (23) 115 Value Destroyed (624) 624 Prototype IDs (0) 0 Alien Tech Used (0) 0 Bonus (0) 0 TOTAL SCORE: 1639 Bonus ------- None Cogmind --------- Core Integrity 0/400 Matter 295/300 Energy 275/275 System Corruption 0% Temperature Cool (9) Location -9/Materials Parts ------- Power (1) Deuterium Engine Propulsion (2) Aluminum Leg Utility (4) Large Storage Unit Large Storage Unit Advanced Visual Processing Unit Hacking Suite Weapon (2) Katana Katana Inventory (16) Ion Engine Deuterium Engine Deuterium Engine Small Storage Unit Hacking Suite Hacking Suite Datajack Katana Peak State ------------ Power Deuterium Engine Propulsion Aluminum Leg Aluminum Leg Utility Large Storage Unit Advanced Visual Processing Unit Hacking Suite Hacking Suite Weapon Katana Katana Inventory Deuterium Engine Deuterium Engine Small Storage Unit Large Storage Unit Hacking Suite Hacking Suite Datajack Katana Katana [Rating: 23] Favorites ----------- Power Deuterium Engine Engine Deuterium Engine Propulsion Aluminum Leg Leg Aluminum Leg Wheel Wheel Utility Large Storage Unit Storage Large Storage Unit Processor Signal Interpreter Hackware Hacking Suite Protection Light Armor Plating Weapon Katana Energy Gun Medium Laser Ballistic Gun Assault Rifle Ballistic Cannon Light Cannon Slashing Weapon Katana Build | -11 -10 -9 ------- Run | Scr Mat Mat Slots Evolved 2 | . . 2 Power . | . . . Propulsion . | . . . Utility 2 | . . 2 Weapon . | . . . Parts Attached 31 | 5 8 18 Power 6 | 1 1 4 Engine 6 | 1 1 4 Core . | . . . Reactor . | . . . Propulsion 6 | 2 . 4 Treads . | . . . Leg 4 | . . 4 Wheel 2 | 2 . . Hover . | . . . Flight . | . . . Utility 9 | . 3 6 Device . | . . . Storage 4 | . 2 2 Processor 2 | . 1 1 Hackware 2 | . . 2 Protection 1 | . . 1 Artifact . | . . . Weapon 10 | 2 4 4 Energy Gun 2 | 1 1 . Energy Cannon . | . . . Ballistic Gun 2 | 1 1 . Ballistic Cannon 2 | . 2 . Launcher . | . . . Special Weapon . | . . . Impact Weapon . | . . . Slashing Weapon 4 | . . 4 Piercing Weapon . | . . . Special Melee Weapon . | . . . Unidentified Prototypes . | . . . Parts Lost 9 | . 3 6 Power 3 | . 1 2 Propulsion 3 | . 1 2 Utility 1 | . . 1 Weapon 2 | . 1 1 Highest Loss Streak 2 | . 2 2 Average Slot Usage (%) 87 | . 92 85 Engine 11 | . 13 9 Leg 8 | . . 12 Wheel 9 | . 26 . Storage 16 | . 11 18 Processor 11 | . 11 11 Hackware 6 | . . 9 Protection 1 | . . 1 Ballistic Gun 3 | . 11 . Ballistic Cannon 9 | . 14 7 Slashing Weapon 9 | . . 14 Naked Turns . | . . . Heaviest Build 50 | 7 27 50 Greatest Support 26 | 26 26 20 Greatest Overweight (x) 16 | . 2 16 Average Overweight (x) 1 | . . 2 Largest Inventory Capacity 16 | 4 10 16 Average Capacity 11 | 4 6 13 Most Carried 15 | 4 9 15 Average Carried 8 | 2 5 9 Final Capacity 16 | 4 10 16 Final Carried 9 | 3 9 8 Class Distribution -------------------- 77% | Mutant 22% | Hacker-Mutant Dominant Class ---------------- Mutant | -10/Materials Mutant | -9/Materials Resources | -11 -10 -9 ----------- Run | Scr Mat Mat Matter Collected 708 | 203 251 254 Remotely . | . . . Salvage Created 761 | . 361 400 Parts 52 | . 29 23 Haulers Intercepted . | . . . Recyclers Shooed . | . . . Parts Field Recycled . | . . . Retrieved Matter . | . . . Parts Self-Destructed . | . . . Prevented . | . . . Kills | -11 -10 -9 ------- Run | Scr Mat Mat Combat Hostiles Destroyed 20 | . 10 10 Melee 6 | . . 6 Guns 6 | . 6 . Cannons 8 | . 4 4 Classes Destroyed 5 | . 3 2 Recycler 1 | . . 1 Watcher 2 | . 2 . Swarmer 6 | . 3 3 Grunt 13 | . 7 6 Sentry 1 | . . 1 Best Kill Streak 3 | . 3 2 Combat Bots Only 3 | . 3 2 Max Kills in Single Turn 1 | . 1 1 Gunslinging . | . . . Exploded . | . . . Melee 1 | . . 1 Uniques/NPCs Destroyed . | . . . Combat | -11 -10 -9 -------- Run | Scr Mat Mat Damage Taken 1634 | . 295 1339 Core 439 | . 28 411 Absorbed by Shields . | . . . Core Remaining (%) 94 | 100 88 . Volleys Fired 38 | . 25 13 Largest 2 | . 2 2 Hottest 70 | . 70 70 Shots Fired 72 | . 46 26 Gun 27 | . 27 . Cannon 45 | . 19 26 Launcher . | . . . Special . | . . . Kinetic 66 | . 40 26 Thermal 6 | . 6 . Explosive . | . . . Electromagnetic . | . . . Robot Hit Streak 8 | . 8 5 Robot Miss Streak 3 | . 1 3 Penetration Max . | . . . Secondary Targets . | . . . Shots Hit Robots 73 | . 33 40 Core Hits 31 | . 19 12 Critical Hits 2 | . . 2 Critical Kills . | . . . Critical Parts Destroyed 2 | . . 2 Melee Attacks 31 | . . 31 Impact . | . . . Slashing 31 | . . 31 Piercing . | . . . Sneak Attacks 3 | . . 3 Combat Hostiles . | . . . Follow-up Attacks 3 | . . 3 Damage Inflicted 1779 | . 525 1254 Guns 310 | . 310 . Cannons 481 | . 215 266 Explosions . | . . . Melee 988 | . . 988 Ramming . | . . . Kinetic 728 | . 462 266 Thermal 63 | . 63 . Explosive . | . . . Electromagnetic . | . . . Impact . | . . . Slashing 988 | . . 988 Piercing . | . . . Highest Corruption 1 | . 1 . Average Corruption 1 | . 1 . Corruption Purged . | . . . Overload Shots . | . . . Overflow Damage 142 | . . 142 Projectiles 17 | . . 17 Explosions . | . . . Melee 125 | . . 125 Knockbacks 9 | . 4 5 Impact . | . . . Kinetic 8 | . 3 5 Secondary 1 | . 1 . Self-Inflicted Damage . | . . . Shots . | . . . Rammed . | . . . Targets Rammed . | . . . Kicked . | . . . Crushed . | . . . Highest Temperature 141 | . 141 4 Average Temperature 43 | . 44 4 Received Heat Transfer 999 | . 189 810 Siege Activations . | . . . Robots Corrupted . | . . . Combat Hostiles . | . . . Parts Fried . | . . . Impact Corruptions . | . . . Robots Melted . | . . . Combat Hostiles . | . . . Parts Melted . | . . . Heat Transferred 185 | . 185 . Parts Sabotaged . | . . . Parts Stolen . | . . . Parts Stripped . | . . . Power Chain Reactions . | . . . Missiles Intercepted . | . . . Alert | -11 -10 -9 ------- Run | Scr Mat Mat Peak Influence 155 | . 155 116 Average Influence 57 | . 80 48 Maximum Alert Level . | . . . Low Security (%) 100 | . . . Level 1 . | . . . Level 2 . | . . . Level 3 . | . . . Level 4 . | . . . Level 5 . | . . . High Security . | . . . Max Security . | . . . Squads Dispatched 3 | . 1 2 Investigation 2 | . 1 1 Extermination . | . . . Reinforcement 1 | . . 1 Assault . | . . . Garrison . | . . . Intercept . | . . . Construction Impeded . | . . . Haulers Reinforced . | . . . Stealth | -11 -10 -9 --------- Run | Scr Mat Mat Distress Signals 4 | . 1 3 Communications Jammed . | . . . Distress Signals . | . . . Times Spotted 38 | . 13 25 Peak Tracking Total 7 | . 4 7 Tactical Retreats 3 | . . 3 Traps | -11 -10 -9 ------- Run | Scr Mat Mat Traps Triggered 4 | . 2 2 Indirectly . | . . . Trap Hack Attempts . | . . . Triggered . | . . . Disarmed 6 | . 6 . Reprogrammed . | . . . Reused . | . . . Traps Extracted . | . . . Installed . | . . . Triggered . | . . . Machines | -11 -10 -9 ---------- Run | Scr Mat Mat Machines Disabled . | . . . Max in Single Turn . | . . . Machines Sabotaged . | . . . Garrisons Compromised . | . . . Overloaded Fab Kills . | . . . Fab Network Shutdowns . | . . . Hacking | -11 -10 -9 --------- Run | Scr Mat Mat Machines Accessed 11 | . 6 5 Terminals 10 | . 6 4 Fabricators . | . . . Repair Stations . | . . . Recycling Units . | . . . Scanalyzers 1 | . . 1 Garrison Access . | . . . Total Hacks 32 | . 21 11 Successful 20 | . 11 9 Failed 12 | . 10 2 Catastrophic 1 | . . 1 Database Lockouts . | . . . Manual 22 | . 14 8 Terminals 30 | . 21 9 Fabricators . | . . . Repair Stations . | . . . Recycling Units . | . . . Scanalyzers 2 | . . 2 Garrison Access . | . . . Terminal Hacks 8 | . 5 3 Part Schematic 1 | . 1 . Unreport Threat 2 | . . 2 Locate Traps 1 | . 1 . Disarm Traps 1 | . 1 . Dispatch Records 1 | . 1 . Recall Investigation 1 | . . 1 Registered Components 1 | . 1 . Fabricator Hacks . | . . . Repair Station Hacks . | . . . Recycling Unit Hacks . | . . . Scanalyzer 1 | . . 1 Insert Component 1 | . . 1 Garrison Access Hacks . | . . . Unauthorized Hacks 27 | . 17 10 Terminals 11 | . 6 5 Track 1 | . 1 . Botnet 8 | . 4 4 Operators 2 | . 1 1 Fabricators . | . . . Repair Stations . | . . . Recycling Units . | . . . Scanalyzers . | . . . Garrison Access . | . . . Data Cores Recovered . | . . . Used . | . . . Hacking Detections 10 | . 5 5 Full Trace Events 1 | . . 1 Feedback Events . | . . . Feedback Blocked . | . . . Robot Schematics Acquired . | . . . Robots Built . | . . . Matter . | . . . Time . | . . . Total Robot Build Rating . | . . . Part Schematics Acquired 1 | . 1 . Parts Built . | . . . Matter . | . . . Time . | . . . Total Part Build Rating . | . . . Parts Repaired . | . . . Time . | . . . Parts Recycled . | . . . Recycled Matter . | . . . Retrieved Matter . | . . . Retrieved Components . | . . . Parts Scanalyzed . | . . . Part Schematics Acquired . | . . . Parts Damaged . | . . . Bothacking | -11 -10 -9 ------------ Run | Scr Mat Mat Used RIF Installer . | . . . Robots Hacked . | . . . Non-combat . | . . . Combat . | . . . Robot Hacks Applied . | . . . Relay Couplers Released . | . . . Robots Rewired . | . . . Allies Hacked . | . . . Hacks Repelled . | . . . Allies | -11 -10 -9 -------- Run | Scr Mat Mat Total Allies . | . . . Largest Group . | . . . Highest-Rated Group . | . . . Highest-Rated Ally . | . . . Total Orders . | . . . Ally Attacks . | . . . Total Damage . | . . . Kills . | . . . Allies Corrupted . | . . . Allies Melted . | . . . Intel | -11 -10 -9 ------- Run | Scr Mat Mat Robot Analysis Total . | . . . Derelict Logs Recovered . | . . . Drone Launches . | . . . Drone Recoveries . | . . . Exploration | -11 -10 -9 ------------- Run | Scr Mat Mat Turns Passed 1780 | 46 593 1141 Spaces Moved 941 | 43 454 444 Core 63 | 14 . 49 Treads . | . . . Legs 361 | . . 361 Wheels 517 | 29 454 34 Hover . | . . . Flight . | . . . Fastest Speed 50 | 50 90 120 Average Speed 151 | 76 91 220 Slowest Speed 850 | 90 100 850 Overloaded Moves . | . . . Propulsion Burnouts . | . . . Robots Hopped . | . . . Cave-ins Triggered . | . . . Exploration Rate (%) 31 | 3 66 25 Regions Visited 2 Branch Regions . Pre-discovered Areas . | . . . Known Exits Taken 1 | . 1 . Unknown Exits Taken 1 | 1 . . Scrap Searched . | . . . Spaces Dug . | . . . Terrain Destroyed . | . . . Melee . | . . . Projectile . | . . . AOE . | . . . Actions | -11 -10 -9 --------- Run | Scr Mat Mat Total 1181 | 55 587 539 Wait 85 | . 79 6 Move 939 | 42 453 444 Hop . | . . . Pick Up 46 | 8 16 22 Fast Attach . | . . . Attach 22 | 5 4 13 Detach . | . . . Swap 9 | . 4 5 Drop 15 | . 6 9 Fire 38 | . 25 13 Melee 27 | . . 27 Ram . | . . . Kick . | . . . Crush . | . . . Escape Stasis . | . . . Rewire . | . . . Trap . | . . . Miscellaneous . | . . . Route ------- -11/Scrapyard -10/Materials (discovered 2 exits: *Mat / *Min) -9/Materials History --------- Turn | Location | Event 2 | -11/Scrapyard | Met Revision 17 34 | -11/Scrapyard | Discovered new exit (range 15) 47 | -11/Scrapyard | Entered Materials 138 | -10/Materials | Discovered new exit (range 14) 266 | -10/Materials | Identified exit to Mines 310 | -10/Materials | Build established: Mutant 556 | -10/Materials | Discovered new exit (range 16) 592 | -10/Materials | Identified exit to Materials 640 | -10/Materials | Entered another Materials area 640 | -9/Materials | Evolved 2 slots: Utility x2 1056 | -9/Materials | Core integrity fell below 50% 1486 | -9/Materials | Build established: Hacker-Mutant 1744 | -9/Materials | Core integrity fell below 20% 1781 | -9/Materials | Destroyed by G-47 Trooper with Particle Gun Last Messages --------------- 01659_ Destroyed Lgt. Ion Engine. 01659_ Destroyed Wheel. 01673_ K-01 Serf cleans the Scanalyzer. 01701_ Katana follow-up attack on G-47 Trooper. 01703_ G-47 Trooper destroyed. 01713_ K-01 Serf collects debris. 01739_ C-30 ARC bursts open, deploying its payload. 01739_ G-47 Trooper unfolds itself. 01739_ G-34 Mercenary unfolds itself. 01739_ K-01 Serf collects debris. 01741_ K-01 Serf cleans the Neutrino Reactor. 01747_ W-16 Scout distress signal alerts nearby ally. 01757_ Katana destroyed. 01761_ G-47 Trooper suffers critical hit. 01761_ Destroyed Particle Gun. 01764_ Aluminum Leg destroyed. 01769_ Katana follow-up attack on G-34 Mercenary. 01769_ Destroyed Aluminum Leg. 01777_ G-34 Mercenary suffers critical hit. 01777_ Destroyed Heat Sink. Map ----- +----------------------------------------------------+ | ?????????????????????????????????????????????????? | | ?????????????????????????????????????????????????? | | ????????????????????????? ?????????????????????? | | ????????????????????????? ??????????????????? ? | | ????????????????????????# ??????????????????? ? | | ????????###?????????????# ???????????# ?????? ? | | ????????# ?????????????# ########???# ???? ? | | ????????# ?????????????# #???# ???? ? | | ????????# ?????????????# ##?## ####+## | | ????????# ?????????????# | | ####????# ?????????????# | | # ???# ?????????????# """ """ """ """ | | # ??? ?????????????# """ """ """ """ | | # ### ######+##?####% """ """ """ """ | | #? ?? ? | | +??? ???? % ???? | | #????? ? ????? =%* ??????? | | #??????# ###+####### ###/###????????# ^^ | | #??????# # ^ ## #%=[! ########## | | #??????#^ # ## # ## # ^^ | | ####??????# # "" "" ## # ##[[ % # % ! | | #???????# +^""S"" ## + =##[ # | | ######### # """" ## # ! ## +! | | % # + % # [!## #%= | | ##########+#############g#################= *### | | #?????# #???# g @ + !%#?? | | ######## """#???# ##############+#### | | # # """#???# g #????????# | | + """ # """#???# #????????## """ | | # """ =# #???# [ #?????????# """ | | + """ # """#???# #?????????# """ | | ## # """#???# #?????????# | | ?# ! # """#???# [ #?????????# """ " | | ?########[ #???###########?????????# """ T | | ????????#########????????????????????????# """ " | | ?????????????????????????????????????????# | | ?????????????????????????????????????????######### | | | | | | | | | | | | | | | | | | | | | | | | | | | +----------------------------------------------------+ Best States ------------- Heat Dissipation 28 Energy Generation 14 Energy Capacity 275 Matter Stores 300 Matter Capacity 300 Sight Range 20 Terrain Scan Density 10 Armor Coverage 150 Resistance: KI 20 Resistance: TH 20 Resistance: EX 20 Resistance: EM 20 Resistance: I 20 Resistance: S 20 Resistance: P 20 Evasion (%) 50 Offensive Hacking 20 Item Schematics ----------------- Hcp. Storage Unit | -10/Materials | Hacked Robot Schematics ------------------ None Fabricated ------------ Nothing Alien Tech Used ----------------- None Achievements -------------- None Challenges ------------ None Game ------ Seed MissileGuidedProjector Manual? 0 Play Time 00:21:55 Cumulative 60.2 hours Start 2019.10.29 @ 22:12:54 End 2019.10.29 @ 22:27:22 Sessions 1 Manual Loads 0 Difficulty Adventurer Special Mode None Game No. 99 Rogue 69 Adventurer 15 Explorer 1 Win Type - Total 0 Types 0/0/0/0/0/0/0 Lore% 28 Gallery% 47 Achievement% 36 Wizard Run 0 Options --------- ASCII 0 Keyboard 0 Movement Numpad Keybinds 0 Fullscreen 1 Font 12/Tallcaps Map View 83x54 Tactical HUD 1 Map Filters NONE Filters NONE Steam 1 RUN: 2c0e5013-9021-4ef0-aefd-577bd9d1a90a